fUST/lending_fUST_20240914
["ID","MTS","AMOUNT","RATE_DAILY","PERIOD"]
[338108385,1726281048343,-500.0,0.00010958,2]
[338108386,1726281048353,-6336.19,0.00010958,2]
[338108387,1726281048363,-500.0,0.00010958,2]
[338108388,1726281048374,-584.25,0.00010958,2]
[338108389,1726281048383,-500.0,0.00010958,2]
[338108390,1726281048392,-500.0,0.00010958,2]
[338108391,1726281048402,-500.0,0.00010958,2]
[338108392,1726281048412,-500.0,0.00010958,2]
[338108393,1726281048423,-500.0,0.00010958,2]
[338108394,1726281048433,-500.0,0.00010958,2]
[338108395,1726281048443,-500.0,0.00010958,2]
[338108396,1726281048453,-500.0,0.00010958,2]
[338108397,1726281048462,-500.0,0.00010958,2]
[338108398,1726281048472,-500.71157462,0.00010958,2]
[338108399,1726281048481,-610.41,0.00010958,2]
[338108400,1726281048490,-500.0,0.00010958,2]
[338108401,1726281048500,-406.24875207,0.00010958,2]
[338108402,1726281048510,-500.0,0.00010958,2]
[338108403,1726281048520,-500.0,0.00010958,2]
[338108404,1726281048529,-507.12883839,0.00010958,2]
[338108405,1726281048538,-500.0,0.00010958,2]
[338108406,1726281048549,-500.0,0.00010958,2]
[338108407,1726281048558,-500.0,0.00010958,2]
[338108408,1726281048567,-500.0,0.00010958,2]
[338108409,1726281048577,-503.35525687,0.00010958,2]
[338108410,1726281048586,-502.71990525,0.00010958,2]
[338108411,1726281048596,-500.0,0.00010958,2]
[338108412,1726281048606,-500.0,0.00010958,2]
[338108413,1726281048615,-500.0,0.00010958,2]
[338108414,1726281048625,-500.0,0.00010958,2]
[338108415,1726281048635,-500.0,0.00010958,2]
[338108416,1726281048644,-500.0,0.00010958,2]
[338108417,1726281048654,-500.0,0.00010958,2]
[338108418,1726281048664,-500.0,0.00010958,2]
[338108419,1726281048674,-500.0,0.00010958,2]
[338108420,1726281048687,-500.0,0.00010958,2]
[338108421,1726281048698,-500.0,0.00010958,2]
[338108422,1726281048708,-500.0,0.00010958,2]
[338108423,1726281048719,-500.0,0.00010958,2]
[338108424,1726281048728,-698.28,0.00010958,2]
[338108425,1726281048737,-500.0,0.00010958,2]
[338108426,1726281048746,-500.0,0.00010958,2]
[338108427,1726281048757,-500.0,0.00010958,2]
[338108428,1726281048767,-500.0,0.00010958,2]
[338108429,1726281048777,-539.543219,0.00010958,2]
[338108430,1726281048788,-500.0,0.00010958,2]
[338108431,1726281048798,-500.0,0.00010958,2]
[338108432,1726281048808,-500.59971689,0.00010958,2]
[338108433,1726281048818,-2133.18,0.00010958,2]
[338108434,1726281048827,-500.0,0.00010958,2]
[338108435,1726281048836,-500.0,0.00010958,2]
[338108436,1726281048845,-500.0,0.00010958,2]
[338108437,1726281048856,-500.0,0.00010958,2]
[338108438,1726281048867,-500.62927377,0.00010958,2]
[338108439,1726281048877,-500.0,0.00010958,2]
[338108440,1726281048887,-500.0,0.00010958,2]
[338108441,1726281048896,-500.0,0.00010958,2]
[338108442,1726281048905,-500.0,0.00010958,2]
[338108443,1726281048915,-500.0,0.00010958,2]
[338108444,1726281048925,-552.75087263,0.00010958,2]
[338108445,1726281048935,-500.0,0.00010958,2]
[338108446,1726281048945,-765.23,0.00010958,2]
[338108447,1726281048956,-500.0,0.00010958,2]
[338108448,1726281048965,-500.0,0.00010958,2]
[338108449,1726281048975,-500.0,0.00010958,2]
[338108450,1726281048985,-500.0,0.00010958,2]
[338108451,1726281048996,-500.0,0.00010958,2]
[338108452,1726281049005,-500.0,0.00010958,2]
[338108453,1726281049015,-210.16975226,0.00010958,2]
[338108454,1726281049025,-500.0,0.00010958,2]
[338108455,1726281049033,-669.07,0.00010958,2]
[338108456,1726281049043,-500.0,0.00010958,2]
[338108457,1726281049053,-500.0,0.00010958,2]
[338108458,1726281049062,-1720.37,0.00010959,2]
[338108459,1726281049072,-1433.64,0.00010959,2]
[338108460,1726281049082,-200.81868695,0.00010973,2]
[338108461,1726281049092,-500.33385565,0.00010973,2]
[338108462,1726281049102,-504.39911342,0.00010973,2]
[338108463,1726281049111,-200.33044179,0.00010973,2]
[338108464,1726281049121,-500.45308926,0.00010973,2]
[338108465,1726281049130,-235.71232525,0.00010973,2]
[338108466,1726281049141,-314.32627083,0.00010973,2]
[338108467,1726281049150,-645.0430327,0.00010973,2]
[338108468,1726281049169,-500.27271061,0.00010973,2]
[338108469,1726281049179,-500.73339013,0.00010973,2]
[338108470,1726281049188,-500.41579706,0.00010973,2]
[338108471,1726281049197,-500.0,0.00010973,2]
[338108472,1726281049208,-513.14440973,0.00010973,2]
[338108473,1726281049218,-174.14486607,0.00010973,2]
[338108474,1726281049227,-336.51119114,0.00010973,2]
[338108475,1726281049236,-254.01450007,0.00010973,2]
[338108476,1726281049247,-500.0,0.00010973,2]
[338108477,1726281049256,-500.0,0.00010973,2]
[338108478,1726281049266,-500.64070933,0.00010973,2]
[338108479,1726281049275,-500.0,0.00010973,2]
[338108480,1726281049285,-500.0,0.00010973,2]
[338108481,1726281049294,-160.03374661,0.00010973,2]
[338108482,1726281049304,-500.0,0.00010973,2]
[338108483,1726281049314,-500.72740231,0.00010973,2]
[338108484,1726281049323,-500.62369226,0.00010973,2]
[338108485,1726281049333,-500.50196955,0.00010973,2]
[338108486,1726281049342,-500.75995525,0.00010973,2]
[338108487,1726281049351,-500.49208513,0.00010973,2]
[338108488,1726281049361,-500.0,0.00010973,2]
[338108489,1726281049371,-903.6984407,0.00011051,2]
[338108490,1726281049382,-153.0,0.000111,2]
[338108491,1726281049391,-416.9832008,0.000111,2]
[338108492,1726281049400,-761.1,0.00011229,2]
[338108493,1726281049411,-162.0,0.00011229,2]
[338108494,1726281049421,-500.0,0.0001123,2]
[338108495,1726281049430,-761.1,0.0001123,2]
[338108496,1726281049440,-500.0,0.0001123,2]
[338108497,1726281049449,-718.59,0.0001123,2]
[338108498,1726281049459,-500.0,0.0001123,2]
[338108499,1726281049468,-6336.19,0.0001123,2]
[338108500,1726281049478,-6336.19,0.0001123,2]
[338108501,1726281049490,-500.0,0.00011231,2]
[338108502,1726281049499,-500.0,0.00011231,2]
[338108503,1726281049510,-500.0,0.00011231,2]
[338108504,1726281049521,-1171.03,0.00011231,2]
[338108505,1726281049530,-1171.03,0.00011231,2]
[338108506,1726281049539,-1171.03,0.00011231,2]
[338108507,1726281049548,-1171.03,0.00011231,2]
[338108508,1726281049560,-1171.03,0.00011231,2]
[338108509,1726281049570,-1171.03,0.00011231,2]
[338108510,1726281049579,-761.1,0.00011231,2]
[338108511,1726281049588,-761.1,0.00011231,2]
[338108512,1726281049598,-761.1,0.00011231,2]
[338108513,1726281049608,-761.1,0.00011231,2]
[338108514,1726281049619,-761.1,0.00011231,2]
[338108515,1726281049629,-761.1,0.00011231,2]
[338108516,1726281049642,-761.22,0.00011231,2]
[338108517,1726281049652,-500.0,0.00011231,2]
[338108518,1726281049664,-500.0,0.00011231,2]
[338108519,1726281049674,-500.0,0.00011231,2]
[338108520,1726281049688,-500.0,0.00011231,2]
[338108521,1726281049698,-500.0,0.00011231,2]
[338108522,1726281049708,-348.67838176,0.00011231,2]
[338108523,1726281049720,-718.59,0.00011231,2]
[338108524,1726281049730,-718.59,0.00011231,2]
[338108525,1726281049741,-718.59,0.00011231,2]
[338108526,1726281049753,-718.59,0.00011231,2]
[338108527,1726281049766,-718.59,0.00011231,2]
[338108528,1726281049778,-718.59,0.00011231,2]
[338108529,1726281049788,-718.59,0.00011231,2]
[338108530,1726281049797,-718.59,0.00011231,2]
[338108531,1726281049806,-718.59,0.00011231,2]
[338108532,1726281049815,-718.59,0.00011231,2]
[338108533,1726281049824,-718.69996665,0.00011231,2]
[338108534,1726281049833,-500.0,0.00011231,2]
[338108535,1726281049843,-500.0,0.00011231,2]
[338108536,1726281049852,-500.0,0.00011231,2]
[338108537,1726281049861,-503.19426067,0.00011231,2]
[338108538,1726281049870,-6336.19,0.00011231,2]
[338108539,1726281049880,-6336.19,0.00011231,2]
[338108540,1726281049889,-6336.19,0.00011231,2]
[338108541,1726281049898,-6336.19,0.00011231,2]
[338108542,1726281049907,-6336.19,0.00011231,2]
[338108543,1726281049916,-6336.39259535,0.00011231,2]
[338108544,1726281049925,-40749.90837533,0.00011232,3]
[338108545,1726281050546,-500.0,0.00010958,2]
[338108546,1726281050556,-500.0,0.00010958,2]
[338108547,1726281050566,-500.0,0.00010958,2]
[338108548,1726281050575,-500.19955843,0.00010973,2]
[338108549,1726281050585,-36455.85997276,0.00011232,3]
[338108550,1726281050595,-151.0,0.00011232,2]
[338108551,1726281050604,-151.0,0.00011232,2]
[338108552,1726281050615,-500.0,0.00011232,2]
[338108553,1726281050624,-500.0,0.00011232,2]
[338108554,1726281050634,-500.0,0.00011232,2]
[338108555,1726281050645,-500.0,0.00011232,2]
[338108556,1726281050655,-500.0,0.00011232,2]
[338108557,1726281050665,-500.0,0.00011232,2]
[338108558,1726281050675,-502.19071687,0.00011232,2]
[338108559,1726281050689,-503.18755771,0.00011232,2]
[338108560,1726281050700,-500.0,0.00011232,2]
[338108561,1726281050711,-501.57964371,0.00011232,2]
[338108562,1726281050721,-505.02570689,0.00011232,2]
[338108563,1726281050731,-500.0,0.00011232,2]
[338108564,1726281050743,-500.0,0.00011232,2]
[338108565,1726281050754,-500.0,0.00011232,2]
[338108566,1726281050763,-500.0,0.00011232,2]
[338108567,1726281050774,-500.0,0.00011232,2]
[338108568,1726281050785,-500.0,0.00011232,2]
[338108569,1726281050795,-500.0,0.00011232,2]
[338108570,1726281050807,-500.0,0.00011232,2]
[338108571,1726281050818,-521.49095,0.00011232,2]
[338108572,1726281050829,-500.0,0.00011232,2]
[338108573,1726281050842,-837.37,0.00011232,2]
[338108574,1726281050852,-500.0,0.00011232,2]
[338108575,1726281050863,-500.0,0.00011232,2]
[338108576,1726281050872,-500.0,0.00011232,2]
[338108577,1726281050882,-500.0,0.00011232,2]
[338108578,1726281050891,-500.0,0.00011232,2]
[338108579,1726281050901,-500.0,0.00011232,2]
[338108580,1726281050911,-500.0,0.00011232,2]
[338108581,1726281050921,-500.0,0.00011232,2]
[338108582,1726281050931,-161.85121593,0.00011232,2]
[338108583,1726281050942,-500.0,0.00011232,2]
[338108584,1726281050952,-500.0,0.00011232,2]
[338108585,1726281050964,-500.0,0.00011232,2]
[338108586,1726281050975,-500.0,0.00011232,2]
[338108587,1726281050986,-500.0,0.00011232,2]
[338108588,1726281050996,-500.0,0.00011232,2]
[338108589,1726281051006,-500.0,0.00011232,2]
[338108590,1726281051016,-500.0,0.00011232,2]
[338108591,1726281051026,-644.00131023,0.00011232,2]
[338108592,1726281051037,-500.0,0.00011232,2]
[338108593,1726281051048,-500.0,0.00011232,2]
[338108594,1726281051061,-504.68330935,0.00011232,2]
[338108595,1726281051071,-500.0,0.00011232,2]
[338108596,1726281051081,-500.0,0.00011232,2]
[338108597,1726281051092,-502.1246605,0.00011232,2]
[338108598,1726281051102,-500.0,0.00011232,2]
[338108599,1726281051111,-500.0,0.00011232,2]
[338108600,1726281051123,-500.0,0.00011232,2]
[338108601,1726281051133,-501.28057729,0.00011232,2]
[338108602,1726281051144,-500.0,0.00011232,2]
[338108603,1726281051155,-500.0,0.00011232,2]
[338108604,1726281051166,-397.08356316,0.00011232,2]
[338108605,1726281051176,-500.0,0.00011232,2]
[338108606,1726281051187,-500.0,0.00011232,2]
[338108607,1726281051197,-606.44246079,0.00011232,2]
[338108608,1726281051210,-500.0,0.00011232,2]
[338108609,1726281051220,-500.0,0.00011232,2]
[338108610,1726281051230,-500.0,0.00011232,2]
[338108611,1726281051240,-500.0,0.00011232,2]
[338108612,1726281051249,-502.29149763,0.00011232,2]
[338108613,1726281051260,-500.0,0.00011232,2]
[338108614,1726281051270,-500.0,0.00011232,2]
[338108615,1726281051281,-500.0,0.00011232,2]
[338108616,1726281051292,-500.0,0.00011232,2]
[338108617,1726281051301,-500.0,0.00011232,2]
[338108618,1726281051311,-500.0,0.00011232,2]
[338108619,1726281051321,-500.0,0.00011232,2]
[338108620,1726281051331,-501.06931834,0.00011232,2]
[338108621,1726281051342,-500.0,0.00011232,2]
[338108622,1726281051352,-500.0,0.00011232,2]
[338108623,1726281051362,-478.08824813,0.00011232,2]
[338108624,1726281051372,-548.56873542,0.00011232,2]
[338108625,1726281051383,-461.88514153,0.00011232,2]
[338108626,1726281051395,-327.27466839,0.00011232,2]
[338108627,1726281051406,-500.0,0.00011232,2]
[338108628,1726281051417,-500.0,0.00011232,2]
[338108629,1726281051427,-500.0,0.00011232,2]
[338108630,1726281051438,-500.0,0.00011232,2]
[338108631,1726281051449,-500.0,0.00011232,2]
[338108632,1726281051459,-501.10364358,0.00011232,2]
[338108633,1726281051469,-500.0,0.00011232,2]
[338108634,1726281051479,-500.0,0.00011232,2]
[338108635,1726281051490,-504.03256382,0.00011232,2]
[338108636,1726281051502,-500.9232864,0.00011232,2]
[338108637,1726281051513,-500.0,0.00011232,2]
[338108638,1726281051522,-500.0,0.00011232,2]
[338108639,1726281051532,-500.0,0.00011232,2]
[338108640,1726281051543,-501.16095787,0.00011232,2]
[338108641,1726281051554,-500.0,0.00011232,2]
[338108642,1726281051564,-500.0,0.00011232,2]
[338108643,1726281051573,-500.0,0.00011232,2]
[338108644,1726281051582,-500.0,0.00011232,2]
[338108645,1726281051592,-500.0,0.00011232,2]
[338108646,1726281051601,-502.04601501,0.00011232,2]
[338108647,1726281051611,-500.0,0.00011232,2]
[338108648,1726281051620,-501.27105826,0.00011232,2]
[338108649,1726281051629,-500.0,0.00011232,2]
[338108650,1726281051639,-500.0,0.00011232,2]
[338108651,1726281051648,-500.0,0.00011232,2]
[338108652,1726281051661,-500.0,0.00011232,2]
[338108653,1726281051671,-500.0,0.00011232,2]
[338108654,1726281051683,-502.97533911,0.00011232,2]
[338108655,1726281051694,-500.0,0.00011232,2]
[338108656,1726281051704,-500.0,0.00011232,2]
[338108657,1726281051715,-500.0,0.00011232,2]
[338108658,1726281051727,-500.0,0.00011232,2]
[338108659,1726281051736,-500.0,0.00011232,2]
[338108660,1726281051746,-500.0,0.00011232,2]
[338108661,1726281051756,-500.0,0.00011232,2]
[338108662,1726281051766,-500.0,0.00011232,2]
[338108663,1726281051776,-500.0,0.00011232,2]
[338108664,1726281051785,-500.0,0.00011232,2]
[338108665,1726281051794,-500.0,0.00011232,2]
[338108666,1726281051803,-500.0,0.00011232,2]
[338108667,1726281051812,-500.0,0.00011232,2]
[338108668,1726281051821,-500.0,0.00011232,2]
[338108669,1726281051830,-501.89991244,0.00011232,2]
[338108670,1726281051839,-500.0,0.00011232,2]
[338108671,1726281051849,-500.0,0.00011232,2]
[338108672,1726281051859,-500.0,0.00011232,2]
[338108673,1726281051869,-500.0,0.00011232,2]
[338108674,1726281051879,-500.0,0.00011232,2]
[338108675,1726281051888,-500.0,0.00011232,2]
[338108676,1726281051897,-500.0,0.00011232,2]
[338108677,1726281051906,-503.29640841,0.00011232,2]
[338108678,1726281051915,-500.0,0.00011232,2]
[338108679,1726281051924,-500.0,0.00011232,2]
[338108680,1726281051934,-500.0,0.00011232,2]
[338108681,1726281051943,-500.0,0.00011232,2]
[338108682,1726281051953,-500.29667237,0.00011232,2]
[338108683,1726281051962,-500.0,0.00011232,2]
[338108684,1726281051971,-500.0,0.00011232,2]
[338108685,1726281051980,-500.0,0.00011232,2]
[338108686,1726281051990,-500.0,0.00011232,2]
[338108687,1726281051999,-500.0,0.00011232,2]
[338108688,1726281052008,-503.71892276,0.00011232,2]
[338108689,1726281052017,-500.0,0.00011232,2]
[338108690,1726281052026,-500.0,0.00011232,2]
[338108691,1726281052036,-500.0,0.00011232,2]
[338108692,1726281052046,-500.0,0.00011232,2]
[338108693,1726281052055,-500.0,0.00011232,2]
[338108694,1726281052065,-500.0,0.00011232,2]
[338108695,1726281052074,-500.0,0.00011232,2]
[338108696,1726281052083,-500.0,0.00011232,2]
[338108697,1726281052092,-501.53258938,0.00011232,2]
[338108698,1726281052101,-500.0,0.00011232,2]
[338108699,1726281052110,-500.0,0.00011232,2]
[338108700,1726281052119,-500.0,0.00011232,2]
[338108701,1726281052128,-500.0,0.00011232,2]
[338108702,1726281052137,-500.0,0.00011232,2]
[338108703,1726281052147,-449.31934372,0.00011232,2]
[338108704,1726281052156,-500.0,0.00011232,2]
[338108705,1726281052165,-500.0,0.00011232,2]
[338108706,1726281052174,-500.0,0.00011232,2]
[338108707,1726281052183,-500.0,0.00011232,2]
[338108708,1726281052192,-508.10230132,0.00011232,2]
[338108709,1726281052205,-500.0,0.00011232,2]
[338108710,1726281052214,-500.0,0.00011232,2]
[338108711,1726281052224,-500.0,0.00011232,2]
[338108712,1726281052233,-500.0,0.00011232,2]
[338108713,1726281052242,-500.0,0.00011232,2]
[338108714,1726281052252,-501.90834421,0.00011232,2]
[338108715,1726281052262,-502.88938056,0.00011232,2]
[338108716,1726281052271,-500.0,0.00011232,2]
[338108717,1726281052280,-501.57396426,0.00011232,2]
[338108718,1726281052289,-500.0,0.00011232,2]
[338108719,1726281052298,-500.0,0.00011232,2]
[338108720,1726281052307,-500.0,0.00011232,2]
[338108721,1726281052316,-503.80522659,0.00011232,2]
[338108722,1726281052326,-419.23915899,0.00011232,2]
[338108723,1726281052335,-500.0,0.00011232,2]
[338108724,1726281052344,-500.0,0.00011232,2]
[338108725,1726281052353,-396.03476907,0.00011232,2]
[338108726,1726281052363,-410.70646559,0.00011232,2]
[338108727,1726281052372,-501.44814542,0.00011232,2]
[338108728,1726281052381,-500.0,0.00011232,2]
[338108729,1726281052390,-504.97599409,0.00011232,2]
[338108730,1726281052399,-500.0,0.00011232,2]
[338108731,1726281052409,-500.0,0.00011232,2]
[338108732,1726281052418,-362.7334754,0.00011232,2]
[338108733,1726281052428,-500.0,0.00011232,2]
[338108734,1726281052437,-500.0,0.00011232,2]
[338108735,1726281052447,-500.0,0.00011232,2]
[338108736,1726281052456,-500.0,0.00011232,2]
[338108737,1726281052465,-504.47712855,0.00011232,2]
[338108738,1726281052474,-500.0,0.00011232,2]
[338108739,1726281052483,-505.22382699,0.00011232,2]
[338108740,1726281052492,-500.0,0.00011232,2]
[338108741,1726281052502,-500.0,0.00011232,2]
[338108742,1726281052511,-500.0,0.00011232,2]
[338108743,1726281052519,-500.0,0.00011232,2]
[338108744,1726281052529,-500.0,0.00011232,2]
[338108745,1726281052538,-621.27,0.00011232,2]
[338108746,1726281052547,-500.0,0.00011232,2]
[338108747,1726281052556,-500.0,0.00011232,2]
[338108748,1726281052565,-500.0,0.00011232,2]
[338108749,1726281052574,-500.0,0.00011232,2]
[338108750,1726281052584,-500.0,0.00011232,2]
[338108751,1726281052593,-500.0,0.00011232,2]
[338108752,1726281052602,-500.0,0.00011232,2]
[338108753,1726281052611,-503.05397477,0.00011232,2]
[338108754,1726281052621,-500.0,0.00011232,2]
[338108755,1726281052630,-500.0,0.00011232,2]
[338108756,1726281052639,-500.0,0.00011232,2]
[338108757,1726281052648,-500.0,0.00011232,2]
[338108758,1726281052658,-500.0,0.00011232,2]
[338108759,1726281052673,-503.66589371,0.00011232,2]
[338108760,1726281052685,-500.0,0.00011232,2]
[338108761,1726281052694,-500.0,0.00011232,2]
[338108762,1726281052704,-500.0,0.00011232,2]
[338108763,1726281052713,-537.05770997,0.00011232,2]
[338108764,1726281052722,-500.0,0.00011232,2]
[338108765,1726281052733,-500.0,0.00011232,2]
[338108766,1726281052742,-500.0,0.00011232,2]
[338108767,1726281052752,-512.23,0.00011232,2]
[338108768,1726281052765,-500.0,0.00011232,2]
[338108769,1726281052775,-500.0,0.00011232,2]
[338108770,1726281052787,-519.02761033,0.00011232,2]
[338108771,1726281052799,-500.0,0.00011232,2]
[338108772,1726281052809,-500.0,0.00011232,2]
[338108773,1726281052819,-500.0,0.00011232,2]
[338108774,1726281052831,-500.0,0.00011232,2]
[338108775,1726281052841,-500.0,0.00011232,2]
[338108776,1726281052852,-2758.88,0.00011232,2]
[338108777,1726281052863,-500.0,0.00011232,2]
[338108778,1726281052874,-500.0,0.00011232,2]
[338108779,1726281052883,-500.0,0.00011232,2]
[338108780,1726281052895,-500.0,0.00011232,2]
[338108781,1726281052907,-500.0,0.00011232,2]
[338108782,1726281052918,-569.87,0.00011232,2]
[338108783,1726281052928,-601.19257564,0.00011232,2]
[338108784,1726281052939,-511.13847701,0.00011232,2]
[338108785,1726281052951,-500.0,0.00011232,2]
[338108786,1726281052962,-500.0,0.00011232,2]
[338108787,1726281052973,-500.0,0.00011232,2]
[338108788,1726281052983,-500.0,0.00011232,2]
[338108789,1726281052993,-500.0,0.00011232,2]
[338108790,1726281053003,-500.0,0.00011232,2]
[338108791,1726281053014,-500.9321221,0.00011232,2]
[338108792,1726281053025,-500.0,0.00011232,2]
[338108793,1726281053034,-500.0,0.00011232,2]
[338108794,1726281053044,-502.27158895,0.00011232,2]
[338108795,1726281053055,-500.0,0.00011232,2]
[338108796,1726281053067,-500.0,0.00011232,2]
[338108797,1726281053078,-500.0,0.00011232,2]
[338108798,1726281053089,-500.0,0.00011232,2]
[338108799,1726281053099,-500.0,0.00011232,2]
[338108800,1726281053216,-500.0,0.00011232,2]
[338108801,1726281053227,-501.3416671,0.00011232,2]
[338108802,1726281053239,-504.51447117,0.00011232,2]
[338108803,1726281053249,-500.0,0.00011232,2]
[338108804,1726281053258,-500.0,0.00011232,2]
[338108805,1726281053271,-530.31595719,0.00011232,2]
[338108806,1726281053281,-500.0,0.00011232,2]
[338108807,1726281053291,-500.0,0.00011232,2]
[338108808,1726281053302,-500.0,0.00011232,2]
[338108809,1726281053312,-501.22480224,0.00011232,2]
[338108810,1726281053322,-544.11,0.00011232,2]
[338108811,1726281053335,-500.0,0.00011232,2]
[338108812,1726281053344,-500.0,0.00011232,2]
[338108813,1726281053355,-500.0,0.00011232,2]
[338108814,1726281053367,-500.0,0.00011232,2]
[338108815,1726281053377,-154.07085293,0.00011232,2]
[338108816,1726281053389,-500.0,0.00011232,2]
[338108817,1726281053398,-734.73,0.00011232,2]
[338108818,1726281053407,-503.82991985,0.00011232,2]
[338108819,1726281053417,-500.0,0.00011232,2]
[338108820,1726281053426,-500.0,0.00011232,2]
[338108821,1726281053435,-500.0,0.00011232,2]
[338108822,1726281053444,-500.0,0.00011232,2]
[338108823,1726281053453,-503.47436364,0.00011232,2]
[338108824,1726281053463,-500.0,0.00011232,2]
[338108825,1726281053472,-564.08993845,0.00011232,2]
[338108826,1726281053481,-1337.62,0.00011232,2]
[338108827,1726281053490,-500.0,0.00011232,2]
[338108828,1726281053500,-503.97542424,0.00011232,2]
[338108829,1726281053509,-500.0,0.00011232,2]
[338108830,1726281053518,-500.0,0.00011232,2]
[338108831,1726281053527,-500.0,0.00011232,2]
[338108832,1726281053537,-500.0,0.00011232,2]
[338108833,1726281053547,-500.0,0.00011232,2]
[338108834,1726281053556,-505.14082182,0.00011232,2]
[338108835,1726281053566,-500.0,0.00011232,2]
[338108836,1726281053575,-500.0,0.00011232,2]
[338108837,1726281053583,-503.43354937,0.00011232,2]
[338108838,1726281053594,-512.23390872,0.00011232,2]
[338108839,1726281053603,-501.27944476,0.00011232,2]
[338108840,1726281053613,-500.0,0.00011232,2]
[338108841,1726281053623,-504.40937121,0.00011232,2]
[338108842,1726281053632,-553.51597967,0.00011232,2]
[338108843,1726281053641,-500.0,0.00011232,2]
[338108844,1726281053651,-500.0,0.00011232,2]
[338108845,1726281053661,-613.50024238,0.00011232,2]
[338108846,1726281053670,-500.0,0.00011232,2]
[338108847,1726281053680,-523.513511,0.00011232,2]
[338108848,1726281053694,-500.0,0.00011232,2]
[338108849,1726281053703,-500.0,0.00011232,2]
[338108850,1726281053713,-504.77192274,0.00011232,2]
[338108851,1726281053723,-504.73525729,0.00011232,2]
[338108852,1726281053734,-718.97,0.00011232,2]
[338108853,1726281053745,-500.0,0.00011232,2]
[338108854,1726281053755,-502.5387298,0.00011232,2]
[338108855,1726281053765,-500.0,0.00011232,2]
[338108856,1726281053775,-500.0,0.00011232,2]
[338108857,1726281053785,-226.80176114,0.00011232,2]
[338108858,1726281053795,-500.0,0.00011232,2]
[338108859,1726281053804,-510.12088744,0.00011232,2]
[338108860,1726281053814,-500.0,0.00011232,2]
[338108861,1726281053824,-500.0,0.00011232,2]
[338108862,1726281053835,-500.0,0.00011232,2]
[338108863,1726281053845,-500.0,0.00011232,2]
[338108864,1726281053855,-500.0,0.00011232,2]
[338108865,1726281053865,-500.0,0.00011232,2]
[338108866,1726281053875,-500.0,0.00011232,2]
[338108867,1726281053885,-502.24647297,0.00011232,2]
[338108868,1726281053894,-500.0,0.00011232,2]
[338108869,1726281053904,-500.0,0.00011232,2]
[338108870,1726281053914,-500.0,0.00011232,2]
[338108871,1726281053924,-500.0,0.00011232,2]
[338108872,1726281053933,-500.0,0.00011232,2]
[338108873,1726281053943,-506.49731669,0.00011232,2]
[338108874,1726281053953,-500.0,0.00011232,2]
[338108875,1726281053962,-520.18810583,0.00011232,2]
[338108876,1726281053972,-500.0,0.00011232,2]
[338108877,1726281053982,-500.0,0.00011232,2]
[338108878,1726281053991,-500.36429734,0.00011232,2]
[338108879,1726281054001,-502.28496592,0.00011232,2]
[338108880,1726281054011,-500.0,0.00011232,2]
[338108881,1726281054020,-507.05842186,0.00011232,2]
[338108882,1726281054029,-500.0,0.00011232,2]
[338108883,1726281054040,-500.0,0.00011232,2]
[338108884,1726281054050,-500.83031204,0.00011232,2]